Cogmind - Beta 10.2 --- EXPLORER MODE // 2021.01.31 @ 11:58:12 Player: Analote Result: Destroyed by G-47 Trooper with Particle Gun Performance ------------- Evolutions (2) 1000 Regions Visited (4) 800 Robots Destroyed (32) 160 Value Destroyed (822) 822 Prototype IDs (1) 20 Alien Tech Used (0) 0 Bonus (0) 0 TOTAL SCORE: 2802 Bonus ------- None Cogmind --------- Core Integrity 0/550 Matter 249/300 Energy 100/100 System Corruption 0% Temperature Cool (9) Movement Core (50) Location -8/Materials Parts ------- > --- POWER (2) -------- (None) > --- PROPULSION (4) --- (None) > --- UTILITY (3) ------ (None) > --- WEAPON (3) ------- (None) > --- INVENTORY (4) ---- VTOL Module Experimental Sensor Array Light Armor Plating Peak State ------------ > --- POWER ------------ Light Ion Engine Light Ion Engine > --- PROPULSION ------- Light Treads Light Treads Armored Treads Advanced Treads > --- UTILITY ---------- Small Storage Unit Experimental Sensor Array Propulsion Shielding > --- WEAPON ----------- Small Laser Improved Light Cannon > --- INVENTORY -------- VTOL Module Light Armor Plating [Rating: 21] Favorites ----------- Power Light Ion Engine Engine Light Ion Engine Propulsion Aluminum Leg Treads Light Treads Leg Aluminum Leg Flight Unit Flight Unit Utility Small Storage Unit Device Sensor Array Storage Small Storage Unit Processor Visual Processing Unit Protection Propulsion Shielding Weapon Light Assault Rifle Energy Gun Particle Gun Ballistic Gun Light Assault Rifle Ballistic Cannon Improved Light Cannon Build | -11 -10 -9 -9 -8 ------- Run | Scr Mat Mat Min Mat Slots Evolved 5 | . 1 2 . 2 Power 1 | . . . . 1 Propulsion 2 | . 1 1 . . Utility 1 | . . 1 . . Weapon 1 | . . . . 1 Parts Attached 38 | 5 8 8 12 5 Power 5 | 1 . 1 2 1 Engine 5 | 1 . 1 2 1 Core . | . . . . . Reactor . | . . . . . Propulsion 16 | 2 5 4 3 2 Treads 4 | . . . 2 2 Leg 8 | 2 1 4 1 . Wheel . | . . . . . Hover . | . . . . . Flight 4 | . 4 . . . Utility 9 | . 3 2 3 1 Device 2 | . 1 . 1 . Storage 2 | . 1 1 . . Processor 2 | . . 1 . 1 Hackware . | . . . . . Protection 3 | . 1 . 2 . Artifact . | . . . . . Weapon 8 | 2 . 1 4 1 Energy Gun 2 | . . 1 . 1 Energy Cannon . | . . . . . Ballistic Gun 5 | 2 . . 3 . Ballistic Cannon 1 | . . . 1 . Launcher . | . . . . . Special Weapon . | . . . . . Impact Weapon . | . . . . . Slashing Weapon . | . . . . . Piercing Weapon . | . . . . . Special Melee Weapon . | . . . . . Unidentified Prototypes 1 | . . . 1 . Parts Lost 17 | . . 4 9 4 Power 4 | . . 1 1 2 Propulsion 5 | . . 1 4 . Utility 2 | . . 1 1 . Weapon 6 | . . 1 3 2 Highest Loss Streak 8 | . . 2 8 3 Average Slot Usage (%) 75 | . 83 75 77 66 Engine 9 | . 12 8 6 12 Treads 7 | . . . 6 21 Leg 12 | . 8 16 19 . Flight 7 | . 23 15 . . Device 5 | . 1 10 6 3 Storage 5 | . . . 10 6 Processor 3 | . . . 6 3 Protection 6 | . 12 4 4 6 Energy Gun 1 | . . 2 2 2 Ballistic Gun 12 | . 25 16 10 2 Ballistic Cannon 2 | . . . 3 6 Naked Turns 62 | . . . . 62 Heaviest Build 17 | 5 9 14 16 17 Greatest Support 82 | 20 30 40 40 82 Greatest Overweight (x) 2 | . . 1 2 . Average Overweight (x) . | . . . . . Largest Inventory Capacity 12 | 4 12 6 6 6 Average Capacity 5 | 4 4 4 6 5 Most Carried 6 | 3 4 2 6 4 Average Carried 2 | . 1 1 2 2 Final Capacity 6 | 4 4 6 6 4 Final Carried 3 | 2 2 1 3 3 Class Distribution -------------------- 78% | Hacker-Mutant 21% | Scavenger-Mutant Dominant Class ---------------- Hacker-Mutant | -10/Materials Hacker-Mutant | -9/Materials Hacker-Mutant | -9/Mines Hacker-Mutant | -8/Materials Resources | -11 -10 -9 -9 -8 ----------- Run | Scr Mat Mat Min Mat Matter Collected 920 | 260 160 109 242 149 Remotely . | . . . . . Salvage Created 897 | 47 351 211 196 92 Parts 58 | 2 25 17 6 8 Haulers Intercepted 1 | . 1 . . . Recyclers Shooed . | . . . . . Parts Field Recycled . | . . . . . Retrieved Matter . | . . . . . Parts Self-Destructed . | . . . . . Prevented . | . . . . . Kills | -11 -10 -9 -9 -8 ------- Run | Scr Mat Mat Min Mat Combat Hostiles Destroyed 29 | 1 7 4 9 8 Guns 23 | 1 7 4 9 2 Cannons 6 | . . . . 6 Classes Destroyed 9 | 1 4 . 3 1 Worker 1 | . 1 . . . Hauler 1 | . 1 . . . Watcher 6 | . 3 3 . . Swarmer 9 | . 4 . . 5 Grunt 9 | 1 3 4 . 1 Duelist 1 | . . . . 1 Sentry 3 | . . . 2 1 Demolisher 2 | . . . 2 . Assembled 5 | . . . 5 . Best Kill Streak 6 | 1 6 3 5 3 Combat Bots Only 5 | 1 2 2 5 3 Max Kills in Single Turn 1 | 1 1 1 1 1 Gunslinging . | . . . . . Exploded . | . . . . . Melee . | . . . . . Uniques/NPCs Destroyed . | . . . . . Combat | -11 -10 -9 -9 -8 -------- Run | Scr Mat Mat Min Mat Damage Taken 2486 | 25 256 190 994 1021 Core 845 | 12 41 40 198 554 Absorbed by Shields . | . . . . . Core Remaining (%) 71 | 95 78 . 40 . Volleys Fired 176 | 5 47 33 52 39 Largest 2 | 2 2 2 2 2 Hottest 85 | 40 40 85 85 79 Shots Fired 297 | 10 94 66 63 64 Gun 258 | 10 94 66 63 25 Cannon 39 | . . . . 39 Launcher . | . . . . . Special . | . . . . . Kinetic 267 | 10 94 55 59 49 Thermal 30 | . . 11 4 15 Explosive . | . . . . . Electromagnetic . | . . . . . Robot Hit Streak 49 | 9 27 22 31 49 Robot Miss Streak 3 | . 2 2 1 3 Penetration Max . | . . . . . Secondary Targets 1 | . 1 . . . Max Gunslinging Chain 1 | . 1 . . . Shots Hit Robots 255 | 9 76 56 58 56 Core Hits 82 | 3 26 18 22 13 Critical Hits 2 | 1 . 1 . . Critical Kills 1 | 1 . . . . Critical Parts Destroyed 1 | . . 1 . . Melee Attacks . | . . . . . Impact . | . . . . . Slashing . | . . . . . Piercing . | . . . . . Sneak Attacks . | . . . . . Combat Hostiles . | . . . . . Follow-up Attacks . | . . . . . Damage Inflicted 2670 | 62 491 522 668 927 Guns 1945 | 62 491 522 663 207 Cannons 720 | . . . . 720 Explosions . | . . . . . Melee . | . . . . . Ramming 5 | . . . 5 . Kinetic 2337 | 62 491 362 616 806 Thermal 328 | . . 160 47 121 Explosive . | . . . . . Electromagnetic . | . . . . . Impact . | . . . . . Slashing . | . . . . . Piercing . | . . . . . Highest Corruption 3 | . . . 3 . Average Corruption 3 | . . . 3 . Corruption Purged . | . . . . . Effects 3 | . . . 3 . Message Errors 1 | . . . 1 . Matter Fused 2 | . . . 2 . Overload Shots . | . . . . . Overflow Damage 11 | . . . . 11 Projectiles 11 | . . . . 11 Explosions . | . . . . . Melee . | . . . . . Knockbacks 3 | . . . . 3 Impact . | . . . . . Kinetic 3 | . . . . 3 Secondary . | . . . . . Self-Inflicted Damage . | . . . . . Shots . | . . . . . Rammed 2 | . . . 2 . Targets Rammed 2 | . . . 2 . Kicked . | . . . . . Crushed . | . . . . . Highest Temperature 151 | 12 136 151 118 120 Average Temperature 38 | 7 34 42 50 39 Received Heat Transfer 1290 | 24 123 171 189 783 Siege Activations . | . . . . . Robots Corrupted . | . . . . . Combat Hostiles . | . . . . . Parts Fried . | . . . . . Impact Corruptions . | . . . . . Robots Melted . | . . . . . Combat Hostiles . | . . . . . Parts Melted . | . . . . . Heat Transferred 756 | . . 370 111 275 Parts Sabotaged . | . . . . . Parts Stolen . | . . . . . Parts Stripped . | . . . . . Power Chain Reactions . | . . . . . Missiles Intercepted . | . . . . . Alert | -11 -10 -9 -9 -8 ------- Run | Scr Mat Mat Min Mat Peak Influence 267 | 20 267 131 91 240 Initial 36 | . 9 35 36 . Average 78 | 3 130 82 37 115 Maximum Alert Level 1 | . 1 . . 1 Low Security (%) 83 | 100 65 100 100 58 Level 1 16 | . 34 . . 41 Level 2 . | . . . . . Level 3 . | . . . . . Level 4 . | . . . . . Level 5 . | . . . . . High Security . | . . . . . Max Security . | . . . . . Squads Dispatched 3 | . 1 1 . 1 Investigation 1 | . 1 . . . Extermination . | . . . . . Reinforcement 2 | . . 1 . 1 Assault . | . . . . . Garrison . | . . . . . Intercept . | . . . . . Construction Impeded . | . . . . . Haulers Reinforced . | . . . . . Stealth | -11 -10 -9 -9 -8 --------- Run | Scr Mat Mat Min Mat Distress Signals 1 | . . 1 . . Communications Jammed . | . . . . . Distress Signals . | . . . . . Times Spotted 48 | 1 11 10 13 13 Peak Tracking Total 5 | 1 3 3 4 5 Tactical Retreats 2 | . . . 1 1 Traps | -11 -10 -9 -9 -8 ------- Run | Scr Mat Mat Min Mat Traps Triggered . | . . . . . Indirectly . | . . . . . Trap Hack Attempts . | . . . . . Triggered . | . . . . . Disarmed . | . . . . . Reprogrammed . | . . . . . Reused . | . . . . . Traps Extracted . | . . . . . Installed . | . . . . . Triggered . | . . . . . Machines | -11 -10 -9 -9 -8 ---------- Run | Scr Mat Mat Min Mat Machines Disabled . | . . . . . Max in Single Turn . | . . . . . Machines Sabotaged . | . . . . . Garrisons Compromised . | . . . . . Overloaded Fab Kills . | . . . . . Fab Network Shutdowns . | . . . . . Hacking | -11 -10 -9 -9 -8 --------- Run | Scr Mat Mat Min Mat Machines Accessed 5 | . 4 . 1 . Terminals 3 | . 2 . 1 . Fabricators . | . . . . . Repair Stations . | . . . . . Recycling Units 2 | . 2 . . . Scanalyzers . | . . . . . Garrison Access . | . . . . . Total Hacks 14 | . 12 . 2 . Successful 13 | . 11 . 2 . Failed 1 | . 1 . . . Catastrophic . | . . . . . Database Lockouts . | . . . . . Manual . | . . . . . Terminals 8 | . 6 . 2 . Fabricators . | . . . . . Repair Stations . | . . . . . Recycling Units 6 | . 6 . . . Scanalyzers . | . . . . . Garrison Access . | . . . . . Terminal Hacks 7 | . 5 . 2 . Record 6 | . 4 . 2 . Unreport Threat 1 | . 1 . . . Fabricator Hacks . | . . . . . Repair Station Hacks . | . . . . . Recycling Unit Hacks 6 | . 6 . . . Recycle Component 1 | . 1 . . . Process 1 | . 1 . . . Report Inventory 3 | . 3 . . . Retrieve Components 1 | . 1 . . . Scanalyzer . | . . . . . Garrison Access Hacks . | . . . . . Unauthorized Hacks . | . . . . . Terminals . | . . . . . Fabricators . | . . . . . Repair Stations . | . . . . . Recycling Units . | . . . . . Scanalyzers . | . . . . . Garrison Access . | . . . . . Data Cores Recovered . | . . . . . Used . | . . . . . Hacking Detections 5 | . 4 . 1 . Full Trace Events 1 | . 1 . . . Feedback Events . | . . . . . Feedback Blocked . | . . . . . Robot Schematics Acquired . | . . . . . Robots Built . | . . . . . Matter . | . . . . . Time . | . . . . . Total Robot Build Rating . | . . . . . Part Schematics Acquired . | . . . . . Parts Built . | . . . . . Matter . | . . . . . Time . | . . . . . Total Part Build Rating . | . . . . . Parts Repaired . | . . . . . Time . | . . . . . Parts Recycled 1 | . 1 . . . Recycled Matter . | . . . . . Retrieved Matter . | . . . . . Retrieved Components 7 | . 7 . . . Parts Scanalyzed . | . . . . . Part Schematics Acquired . | . . . . . Parts Damaged . | . . . . . Bothacking | -11 -10 -9 -9 -8 ------------ Run | Scr Mat Mat Min Mat Used RIF Installer . | . . . . . Robots Hacked . | . . . . . Non-combat . | . . . . . Combat . | . . . . . Robot Hacks Applied . | . . . . . Relay Couplers Released . | . . . . . Robots Rewired . | . . . . . Allies Hacked . | . . . . . Hacks Repelled . | . . . . . Allies | -11 -10 -9 -9 -8 -------- Run | Scr Mat Mat Min Mat Total Allies . | . . . . . Largest Group . | . . . . . Highest-Rated Group . | . . . . . Highest-Rated Ally . | . . . . . Total Orders . | . . . . . Ally Attacks . | . . . . . Total Damage . | . . . . . Kills . | . . . . . Allies Corrupted . | . . . . . Allies Melted . | . . . . . Intel | -11 -10 -9 -9 -8 ------- Run | Scr Mat Mat Min Mat Robot Analysis Total . | . . . . . Derelict Logs Recovered 1 | . . . 1 . Drone Launches . | . . . . . Drone Recoveries . | . . . . . Exploration | -11 -10 -9 -9 -8 ------------- Run | Scr Mat Mat Min Mat Turns Passed 1621 | 86 352 204 618 361 Spaces Moved 1142 | 64 443 165 355 115 Core 84 | 21 . . 59 4 Treads 234 | . . . 123 111 Legs 300 | 43 48 36 173 . Wheels . | . . . . . Hover . | . . . . . Flight 524 | . 395 129 . . Fastest Speed 34 | 50 34 34 100 50 Average Speed 86 | 97 44 53 130 155 Slowest Speed 160 | 120 120 120 160 160 Overloaded Moves . | . . . . . Propulsion Burnouts . | . . . . . Robots Hopped 10 | . 8 2 . . Cave-ins Triggered . | . . . . . Exploration Rate (%) 30 | 8 59 14 61 12 Regions Visited 4 Branch Regions 1 Pre-discovered Areas . | . . . . . Known Exits Taken 4 | 1 1 1 1 . Unknown Exits Taken . | . . . . . Scrap Searched 1 | . . . 1 . Spaces Dug . | . . . . . Terrain Destroyed . | . . . . . Melee . | . . . . . Projectile . | . . . . . AOE . | . . . . . Terrain Rammed . | . . . . . Walls Destroyed . | . . . . . Machines Disabled . | . . . . . Actions | -11 -10 -9 -9 -8 --------- Run | Scr Mat Mat Min Mat Total 1505 | 80 513 224 449 239 Wait 110 | . 16 12 14 68 Move 1118 | 63 426 160 354 115 Hop 10 | . 8 2 . . Pick Up 36 | 7 6 7 12 4 Fast Attach . | . . . . . Attach 30 | 5 5 8 8 4 Detach . | . . . . . Swap 8 | . 3 . 4 1 Drop 15 | . 2 2 3 8 Fire 176 | 5 47 33 52 39 Melee . | . . . . . Ram . | . . . . . Kick 1 | . . . 1 . Crush 1 | . . . 1 . Escape Stasis . | . . . . . Rewire . | . . . . . Trap . | . . . . . Miscellaneous . | . . . . . Route ------- -11/Scrapyard -10/Materials (discovered 3 exits: *Mat x2 / *Min) -9/Materials -9/Mines -8/Materials History --------- Turn | Location | Event 2 | -11/Scrapyard | Met Revision 17 54 | -11/Scrapyard | Identified exit to Materials 54 | -11/Scrapyard | Discovered exit to Materials (range 8) 87 | -11/Scrapyard | Entered Materials 87 | -10/Materials | Evolved 1 slot: Propulsion x1 176 | -10/Materials | Identified exit to Mines 176 | -10/Materials | Discovered exit to Mines (range 11) 216 | -10/Materials | Identified exit to Materials 216 | -10/Materials | Discovered exit to Materials (range 15) 300 | -10/Materials | Build established: Hacker-Mutant 437 | -10/Materials | Discovered exit to Materials (range 5) 439 | -10/Materials | Entered another Materials area 439 | -9/Materials | Evolved 2 slots: Propulsion x1, Utility x1 506 | -9/Materials | Identified exit to Mines 506 | -9/Materials | Discovered exit to Mines (range 16) 643 | -9/Materials | Entered Mines 646 | -9/Mines | Met a Derelict bent on vengeance 853 | -9/Mines | Assembled infested the area 858 | -9/Mines | Assisted by a Guerilla fighting off Assembled 863 | -9/Mines | Build established: Scavenger-Mutant 1007 | -9/Mines | Core integrity fell below 50% 1017 | -9/Mines | Lost 8 parts (1p4n1u2w) 1102 | -9/Mines | Found a damaged Exp. Sensor Array with a note attached 1109 | -9/Mines | Found Prototype Device 1110 | -9/Mines | Identified Exp. Sensor Array 1205 | -9/Mines | Build established: Hacker-Mutant 1205 | -9/Mines | Learned Materials emergency access door positions 1242 | -9/Mines | Identified exit to Materials 1242 | -9/Mines | Discovered exit to Materials (range 12) 1261 | -9/Mines | Entered Materials 1261 | -8/Materials | Evolved 2 slots: Power x1, Weapon x1 1575 | -8/Materials | Lost 3 parts (2p1w) 1585 | -8/Materials | Core integrity fell below 50% 1610 | -8/Materials | Core integrity fell below 20% 1622 | -8/Materials | Destroyed by G-47 Trooper with Particle Gun Last Messages --------------- 01539_ L-31 Rogue destroyed. 01540_ U-05 Engineer destroyed. 01540_ K-01 Serf collects debris. 01544_ Lgt. Ion Engine destroyed. 01544_ K-01 Serf collects debris. 01552_ R-06 Scavenger collects Lgt. Ion Engine. 01556_ R-06 Scavenger collects Terrain Scan Processor. 01557_ Dropped Imp. Light Cannon. 01557_ Dropped Propulsion Shielding. 01558_ Dropped Sml. Storage Unit. 01558_ Discarded Adv. Visual Processing Unit. 01559_ Dropped Adv. Treads. 01559_ R-06 Scavenger collects Propulsion Shielding. 01559_ Dropped Arm. Treads. 01560_ K-01 Serf collects debris. 01560_ Dropped Lgt. Treads. 01561_ Acquired 28 matter. 01562_ R-06 Scavenger collects Arm. Treads. 01564_ K-01 Serf collects debris. 01622_ U-05 Engineer lays Concrete. Map ----- +----------------------------------------------------+ | ????????????????? ??????????????????????????????? | | ????????????????? ??????????????????????????????? | | ##################+######+###################????? | | ? | | * ** * % #?????? | | = %= = #?????? | | #### ######+########+#############+##### #?????? | | ??# # % # " #?????????????????????? | | ??# ## # "" #?????????????????????? | | ??##### """ """ # * T" #?????????????????????? | | ??????# """ """ # / "" #?????????????????????? | | ??????# """ """ # !! #?????????????????????? | | ??????# """ """ # ##????????????????????? | | ??????# """ """ # #????????????????????? | | ??????# #######+#####????????????????????? | | ??????########### #??????????????????????? | | ????????????????# #??????????????????????? | | ????????????????# """"" #??????????????????????? | | ????????????????# """"" #??????????????????????? | | ????????????????# """"" #??????????????????????? | | ????????????????# #??????????????????????? | | ????????????????# #??????????????????????? | | ????????????????# #??????????????????????? | | ????????###########+#############+####???????????? | | ????????# u !%=! o % r ????????? | | ????????# ] * @ g ????????? | | ????????# === g ????????? | | ????????# #######+##################???????????? | | ????????# ??????? ?????????????????????????????? | | ????????????????# ""?????????????????????????????? | | ????????????????# ""?????????????????????????????? | | ????????????????# "??????????????????????????????? | | ????????????????# ??????????????????????????????? | | ????????????????# "??????????????????????????????? | | ????????????????# "??????????????????????????????? | | ????????????????# ???????????????????????????????? | | ????????????????# ???????????????????????????????? | | ?????????????????????????????????????????????????? | | ?????????????????????????????????????????????????? | | ?????????????????????????????????????????????????? | | ?????????????????????????????????????????????????? | | ?????????????????????????????????????????????????? | | ?????????????????????????????????????????????????? | | ?????????????????????????????????????????????????? | | ?????????????????????????????????????????????????? | | ?????????????????????????????????????????????????? | | ?????????????????????????????????????????????????? | | ?????????????????????????????????????????????????? | | ?????????????????????????????????????????????????? | | ?????????????????????????????????????????????????? | +----------------------------------------------------+ Best States ------------- Heat Dissipation 31 Energy Generation 15 Energy Capacity 250 Matter Stores 300 Matter Capacity 300 Sight Range 20 Robot Scan Range 30 Terrain Scan Density 10 Armor Coverage 150 Resistance: KI 35 Resistance: TH 35 Resistance: EX 35 Resistance: EM 35 Resistance: I 35 Resistance: S 35 Resistance: P 35 Propulsion Shielding 33 Evasion (%) 63 Recoil Reduction 4 Offensive Hacking 20 Item Schematics ----------------- None Robot Schematics ------------------ None Fabricated ------------ Nothing Alien Tech Used ----------------- None Achievements -------------- Everything Is Under Control Challenges ------------ None Game ------ Seed TractorTransportLauncher Manual? 0 Play Time 00:21:39 Cumulative 4.0 hours Start 2021.01.31 @ 11:39:03 End 2021.01.31 @ 11:58:12 Sessions 1 Manual Loads 0 Difficulty Explorer Special Mode None Game No. 7 Rogue 0 Adventurer 0 Explorer 7 Win Type - Total 0 Types 0/0/0/0/0/0/0/0/0 Lore% 9 Gallery% 12 Achievement% 14 Wizard Run 0 Options --------- ASCII 0 Keyboard 0 Movement Mouse Keybinds 0 Fullscreen 2 Font 12/Terminus Map View 83x54 Tactical HUD 1 Map Filters NONE Filters NONE Steam 1 RUN: d72b832b-3bcb-4be0-b662-f1ad8c757c92